[Event "Titled Tuesday Blitz June 14 Late 2022"]
[White "Uskov, Artem"]
[Black "Ladan, Nicholas"]
[WhiteFideId "34254854"]
[BlackFideId "30918855"]
[WhiteElo "2335"]
[BlackElo "2167"]
[Result "0-1"]
[Round "07"]
[TimeControl "180+1"]
[Date "2022.06.15"]
[WhiteClock "0:00:06"]
[BlackClock "0:00:04"]

1. e4 {[%clk 0:03:00]}  e5 {[%clk 0:02:59]} 2. f4 {[%clk 0:03:00]}  exf4 {[%clk 0:02:59]} 3. Nf3 {[%clk 0:03:00]}  Be7 {[%clk 0:02:59]} 4. Bc4 {[%clk 0:02:59]}  Bh4+ {[%clk 0:02:59]} 5. Kf1 {[%clk 0:02:59]}  Be7 {[%clk 0:03:00]} 6. d4 {[%clk 0:02:58]}  d5 {[%clk 0:02:59]} 7. exd5 {[%clk 0:02:57]}  Nf6 {[%clk 0:02:59]} 8. Bxf4 {[%clk 0:02:56]}  Nbd7 {[%clk 0:02:58]} 9. Bb3 {[%clk 0:02:55]}  b5 {[%clk 0:02:51]} 10. a4 {[%clk 0:02:50]}  b4 {[%clk 0:02:46]} 11. c4 {[%clk 0:02:50]}  bxc3 {[%clk 0:02:45]} 12. bxc3 {[%clk 0:02:44]}  Ba6+ {[%clk 0:02:41]} 13. Kg1 {[%clk 0:02:41]}  Nb6 {[%clk 0:02:40]} 14. a5 {[%clk 0:02:35]}  Nbxd5 {[%clk 0:02:39]} 15. Bd2 {[%clk 0:02:36]}  c5 {[%clk 0:02:11]} 16. c4 {[%clk 0:02:35]}  Nb4 {[%clk 0:02:06]} 17. Bxb4 {[%clk 0:02:35]}  cxb4 {[%clk 0:02:05]} 18. Ba4+ {[%clk 0:02:36]}  Kf8 {[%clk 0:02:05]} 19. g3 {[%clk 0:02:33]}  Bxc4 {[%clk 0:01:59]} 20. Nbd2 {[%clk 0:02:31]}  Bd5 {[%clk 0:01:54]} 21. Bb3 {[%clk 0:02:31]}  Ng4 {[%clk 0:01:49]} 22. Qe2 {[%clk 0:02:19]}  Bf6 {[%clk 0:01:43]} 23. h3 {[%clk 0:02:15]}  Bxf3 {[%clk 0:01:32]} 24. Nxf3 {[%clk 0:02:16]}  Bxd4+ {[%clk 0:01:31]} 25. Kg2 {[%clk 0:02:14]}  Bxa1 {[%clk 0:01:24]} 26. hxg4 {[%clk 0:02:10]}  Bc3 {[%clk 0:01:21]} 27. Rd1 {[%clk 0:02:07]}  Qe7 {[%clk 0:01:18]} 28. Qb5 {[%clk 0:02:07]}  Rd8 {[%clk 0:00:49]} 29. Rxd8+ {[%clk 0:01:59]}  Qxd8 {[%clk 0:00:50]} 30. Qb7 {[%clk 0:01:52]}  Qe7 {[%clk 0:00:45]} 31. Qc8+ {[%clk 0:01:16]}  Qe8 {[%clk 0:00:45]} 32. Qc5+ {[%clk 0:01:16]}  Qe7 {[%clk 0:00:44]} 33. Qd5 {[%clk 0:00:57]}  h5 {[%clk 0:00:40]} 34. g5 {[%clk 0:00:46]}  h4 {[%clk 0:00:25]} 35. Nxh4 {[%clk 0:00:39]}  Qe2+ {[%clk 0:00:24]} 36. Kh1 {[%clk 0:00:35]}  Qe1+ {[%clk 0:00:21]} 37. Kg2 {[%clk 0:00:33]}  Qe2+ {[%clk 0:00:21]} 38. Kh1 {[%clk 0:00:31]}  Qf1+ {[%clk 0:00:20]} 39. Kh2 {[%clk 0:00:31]}  Qf2+ {[%clk 0:00:21]} 40. Kh3 {[%clk 0:00:31]}  Qf1+ {[%clk 0:00:19]} 41. Kg4 {[%clk 0:00:19]}  Qe2+ {[%clk 0:00:13]} 42. Nf3 {[%clk 0:00:19]}  Qe6+ {[%clk 0:00:09]} 43. Qxe6 {[%clk 0:00:19]}  fxe6 {[%clk 0:00:10]} 44. Nh4 {[%clk 0:00:20]}  Rxh4+ {[%clk 0:00:03]} 45. gxh4 {[%clk 0:00:20]}  e5 {[%clk 0:00:04]} 46. Kf5 {[%clk 0:00:20]}  Ke7 {[%clk 0:00:02]} 47. h5 {[%clk 0:00:20]}  Kd6 {[%clk 0:00:02]} 48. Ke4 {[%clk 0:00:19]}  Ke7 {[%clk 0:00:02]} 49. Kf5 {[%clk 0:00:17]}  Bd4 {[%clk 0:00:02]} 50. a6 {[%clk 0:00:17]}  Bc3 {[%clk 0:00:03]} 51. h6 {[%clk 0:00:15]}  Kf8 {[%clk 0:00:04]} 52. h7 {[%clk 0:00:15]}  g6+ {[%clk 0:00:03]} 53. Kxg6 {[%clk 0:00:14]}  e4 {[%clk 0:00:04]} 54. Kf5 {[%clk 0:00:06]}  e3 {[%clk 0:00:04]} 55. Bd1 {[%clk 0:00:06]}  b3 {[%clk 0:00:04]} 0-1


[Site "https://www.chess.com"]

[Event "Titled Tuesday Blitz June 14 Late 2022"]
[White "Voege, Tobias"]
[Black "Hjartarson, Johann"]
[WhiteFideId "1270513"]
[BlackFideId "2300044"]
[WhiteElo "2379"]
[BlackElo "2458"]
[Result "1/2-1/2"]
[Round "07"]
[TimeControl "180+1"]
[Date "2022.06.14"]
[WhiteClock "0:00:04"]
[BlackClock "0:00:04"]

1. d4 {[%clk 0:03:00]}  Nf6 {[%clk 0:02:59]} 2. c4 {[%clk 0:03:01]}  g6 {[%clk 0:02:58]} 3. Nc3 {[%clk 0:03:00]}  Bg7 {[%clk 0:02:56]} 4. Bg5 {[%clk 0:03:00]}  O-O {[%clk 0:02:53]} 5. Nf3 {[%clk 0:02:59]}  c5 {[%clk 0:02:53]} 6. d5 {[%clk 0:02:59]}  d6 {[%clk 0:02:52]} 7. e3 {[%clk 0:02:59]}  h6 {[%clk 0:02:52]} 8. Bh4 {[%clk 0:02:59]}  g5 {[%clk 0:02:52]} 9. Bg3 {[%clk 0:02:59]}  Nh5 {[%clk 0:02:52]} 10. Qc2 {[%clk 0:02:59]}  Nd7 {[%clk 0:02:48]} 11. Be2 {[%clk 0:02:59]}  Ndf6 {[%clk 0:02:43]} 12. Nd2 {[%clk 0:02:58]}  Nxg3 {[%clk 0:02:39]} 13. hxg3 {[%clk 0:02:59]}  e6 {[%clk 0:02:30]} 14. dxe6 {[%clk 0:02:56]}  Bxe6 {[%clk 0:02:23]} 15. O-O-O {[%clk 0:02:53]}  a6 {[%clk 0:02:17]} 16. Nde4 {[%clk 0:02:45]}  Nxe4 {[%clk 0:02:10]} 17. Nxe4 {[%clk 0:02:46]}  Bf5 {[%clk 0:02:01]} 18. Bd3 {[%clk 0:02:41]}  Qa5 {[%clk 0:01:55]} 19. Nxd6 {[%clk 0:02:32]}  Bxd3 {[%clk 0:01:53]} 20. Rxd3 {[%clk 0:02:33]}  b5 {[%clk 0:01:44]} 21. Nf5 {[%clk 0:02:19]}  Qxa2 {[%clk 0:01:41]} 22. Nxh6+ {[%clk 0:00:57]}  Bxh6 {[%clk 0:01:37]} 23. Rxh6 {[%clk 0:00:56]}  Qxc4 {[%clk 0:01:01]} 24. Qxc4 {[%clk 0:00:55]}  bxc4 {[%clk 0:01:01]} 25. Rd5 {[%clk 0:00:53]}  Kg7 {[%clk 0:00:59]} 26. Rh5 {[%clk 0:00:50]}  f6 {[%clk 0:00:59]} 27. Rxc5 {[%clk 0:00:49]}  Rac8 {[%clk 0:00:56]} 28. Ra5 {[%clk 0:00:48]}  c3 {[%clk 0:00:50]} 29. Rxa6 {[%clk 0:00:43]}  Rfd8 {[%clk 0:00:45]} 30. b4 {[%clk 0:00:16]}  Rd2 {[%clk 0:00:39]} 31. Ra7+ {[%clk 0:00:15]}  Kg6 {[%clk 0:00:39]} 32. g4 {[%clk 0:00:15]}  Rxf2 {[%clk 0:00:35]} 33. Rah7 {[%clk 0:00:13]}  Rf1+ {[%clk 0:00:23]} 34. Kc2 {[%clk 0:00:12]}  Rf2+ {[%clk 0:00:23]} 35. Kb3 {[%clk 0:00:07]}  Rb2+ {[%clk 0:00:22]} 36. Ka4 {[%clk 0:00:07]}  Ra8+ {[%clk 0:00:16]} 37. Kb5 {[%clk 0:00:07]}  Rb8+ {[%clk 0:00:16]} 38. Kc6 {[%clk 0:00:06]}  Rb6+ {[%clk 0:00:07]} 39. Kc7 {[%clk 0:00:04]}  Rb7+ {[%clk 0:00:06]} 40. Kxb7 {[%clk 0:00:04]}  Rxb4+ {[%clk 0:00:06]} 41. Ka6 {[%clk 0:00:04]}  Rxg4 {[%clk 0:00:07]} 42. R5h6+ {[%clk 0:00:04]}  Kf5 {[%clk 0:00:07]} 43. Rc7 {[%clk 0:00:04]}  Rxg2 {[%clk 0:00:06]} 44. Rxc3 {[%clk 0:00:05]}  Rb2 {[%clk 0:00:05]} 45. Rc6 {[%clk 0:00:04]}  Ke4 {[%clk 0:00:02]} 46. Rcxf6 {[%clk 0:00:04]}  Ra2+ {[%clk 0:00:02]} 47. Kb5 {[%clk 0:00:04]}  Rb2+ {[%clk 0:00:03]} 48. Kc4 {[%clk 0:00:04]}  Kxe3 {[%clk 0:00:03]} 49. Rhg6 {[%clk 0:00:04]}  Rg2 {[%clk 0:00:03]} 50. Kd5 {[%clk 0:00:04]}  g4 {[%clk 0:00:03]} 51. Ke5 {[%clk 0:00:03]}  Rg1 {[%clk 0:00:03]} 52. Rf4 {[%clk 0:00:03]}  g3 {[%clk 0:00:03]} 53. Re4+ {[%clk 0:00:03]}  Kf3 {[%clk 0:00:02]} 54. Rf6+ {[%clk 0:00:03]}  Kg2 {[%clk 0:00:02]} 55. Rg4 {[%clk 0:00:03]}  Kh3 {[%clk 0:00:01]} 56. Rg5 {[%clk 0:00:03]}  Re1+ {[%clk 0:00:01]} 57. Kd4 {[%clk 0:00:03]}  Rd1+ {[%clk 0:00:01]} 58. Ke3 {[%clk 0:00:03]}  Rg1 {[%clk 0:00:01]} 59. Rh6+ {[%clk 0:00:03]}  Kg2 {[%clk 0:00:01]} 60. Ke2 {[%clk 0:00:03]}  Ra1 {[%clk 0:00:01]} 61. Rhg6 {[%clk 0:00:03]}  Ra3 {[%clk 0:00:01]} 62. Rg8 {[%clk 0:00:03]}  Rb3 {[%clk 0:00:01]} 63. Rg4 {[%clk 0:00:02]}  Ra3 {[%clk 0:00:01]} 64. R4g7 {[%clk 0:00:03]}  Rb3 {[%clk 0:00:02]} 65. Rd7 {[%clk 0:00:03]}  Ra3 {[%clk 0:00:02]} 66. Rd2 {[%clk 0:00:03]}  Rb3 {[%clk 0:00:03]} 67. Rh8 {[%clk 0:00:04]}  Ra3 {[%clk 0:00:02]} 68. Kd1+ {[%clk 0:00:04]}  Kg1 {[%clk 0:00:02]} 69. Kc2 {[%clk 0:00:04]}  g2 {[%clk 0:00:03]} 70. Rg8 {[%clk 0:00:03]}  Ra2+ {[%clk 0:00:03]} 71. Kd3 {[%clk 0:00:04]}  Rxd2+ {[%clk 0:00:03]} 72. Kxd2 {[%clk 0:00:05]}  Kh1 {[%clk 0:00:03]} 73. Rh8+ {[%clk 0:00:05]}  Kg1 {[%clk 0:00:03]} 74. Ke3 {[%clk 0:00:06]}  Kf1 {[%clk 0:00:03]} 75. Rf8+ {[%clk 0:00:06]}  Ke1 {[%clk 0:00:04]} 76. Rg8 {[%clk 0:00:06]}  Kf1 {[%clk 0:00:04]} 77. Rf8+ {[%clk 0:00:06]}  Ke1 {[%clk 0:00:04]} 78. Rg8 {[%clk 0:00:06]}  Kf1 {[%clk 0:00:05]} 79. Rxg2 {[%clk 0:00:04]}  Kxg2 {[%clk 0:00:04]} 1/2-1/2


[Site "https://www.chess.com"]

[Event "Titled Tuesday Blitz June 14 Late 2022"]
[White "Yurovskykh, Oleksandr"]
[Black "Injac, Teodora"]
[WhiteFideId "14134020"]
[BlackFideId "932400"]
[WhiteElo "2292"]
[BlackElo "2278"]
[Result "1-0"]
[Round "07"]
[TimeControl "180+1"]
[Date "2022.06.14"]
[WhiteClock "0:01:26"]
[BlackClock "0:00:09"]

1. d4 {[%clk 0:03:00]}  Nf6 {[%clk 0:02:59]} 2. c4 {[%clk 0:02:58]}  g6 {[%clk 0:03:00]} 3. Nc3 {[%clk 0:02:58]}  Bg7 {[%clk 0:03:00]} 4. e4 {[%clk 0:02:58]}  d6 {[%clk 0:03:01]} 5. Nf3 {[%clk 0:02:59]}  O-O {[%clk 0:03:01]} 6. Be2 {[%clk 0:02:59]}  e5 {[%clk 0:03:01]} 7. d5 {[%clk 0:03:00]}  a5 {[%clk 0:02:59]} 8. Bg5 {[%clk 0:02:59]}  h6 {[%clk 0:02:53]} 9. Bh4 {[%clk 0:02:59]}  g5 {[%clk 0:02:47]} 10. Bg3 {[%clk 0:02:59]}  Nh5 {[%clk 0:02:47]} 11. h4 {[%clk 0:02:59]}  Nxg3 {[%clk 0:02:40]} 12. fxg3 {[%clk 0:02:59]}  g4 {[%clk 0:02:41]} 13. Nh2 {[%clk 0:02:55]}  h5 {[%clk 0:02:41]} 14. O-O {[%clk 0:02:50]}  Bh6 {[%clk 0:02:32]} 15. Nxg4 {[%clk 0:02:48]}  hxg4 {[%clk 0:02:29]} 16. Bxg4 {[%clk 0:02:49]}  Nd7 {[%clk 0:01:51]} 17. Bf5 {[%clk 0:02:47]}  Nf6 {[%clk 0:01:44]} 18. Qf3 {[%clk 0:02:41]}  Bxf5 {[%clk 0:01:34]} 19. Qxf5 {[%clk 0:02:28]}  Bg7 {[%clk 0:01:24]} 20. Qh3 {[%clk 0:02:14]}  Qd7 {[%clk 0:01:23]} 21. Rf5 {[%clk 0:02:14]}  c6 {[%clk 0:01:08]} 22. Raf1 {[%clk 0:02:13]}  Nh7 {[%clk 0:01:01]} 23. h5 {[%clk 0:01:58]}  Bh6 {[%clk 0:00:56]} 24. Rg5+ {[%clk 0:01:58]}  Bxg5 {[%clk 0:00:49]} 25. Qxd7 {[%clk 0:01:58]}  Be3+ {[%clk 0:00:25]} 26. Kh2 {[%clk 0:01:56]}  Rad8 {[%clk 0:00:24]} 27. Qxb7 {[%clk 0:01:51]}  Ng5 {[%clk 0:00:23]} 28. dxc6 {[%clk 0:01:35]}  Kg7 {[%clk 0:00:12]} 29. Nd5 {[%clk 0:01:30]}  Rh8 {[%clk 0:00:09]} 30. Nxe3 {[%clk 0:01:26]} 1-0


[Site "https://www.chess.com"]

[Event "Titled Tuesday Blitz June 14 Late 2022"]
[White "Andreikin, Dmitry"]
[Black "Sjugirov, Sanan"]
[WhiteFideId "4158814"]
[BlackFideId "4189302"]
[WhiteElo "2736"]
[BlackElo "2602"]
[Result "1-0"]
[Round "08"]
[TimeControl "180+1"]
[Date "2022.06.14"]
[WhiteClock "0:00:08"]
[BlackClock "0:00:03"]

1. d4 {[%clk 0:03:00]}  Nf6 {[%clk 0:03:00]} 2. c4 {[%clk 0:03:01]}  e6 {[%clk 0:03:01]} 3. Nf3 {[%clk 0:02:59]}  b6 {[%clk 0:03:01]} 4. Bf4 {[%clk 0:02:55]}  Bb7 {[%clk 0:02:58]} 5. e3 {[%clk 0:02:55]}  Bb4+ {[%clk 0:02:22]} 6. Nbd2 {[%clk 0:02:55]}  O-O {[%clk 0:02:18]} 7. Bd3 {[%clk 0:02:56]}  d6 {[%clk 0:01:44]} 8. O-O {[%clk 0:02:51]}  Bxd2 {[%clk 0:01:44]} 9. Nxd2 {[%clk 0:02:50]}  Nbd7 {[%clk 0:01:42]} 10. Bg5 {[%clk 0:02:40]}  Re8 {[%clk 0:01:30]} 11. f4 {[%clk 0:02:37]}  c5 {[%clk 0:01:20]} 12. b4 {[%clk 0:02:12]}  Qc7 {[%clk 0:01:13]} 13. Rc1 {[%clk 0:02:09]}  a5 {[%clk 0:00:49]} 14. bxc5 {[%clk 0:02:00]}  bxc5 {[%clk 0:00:49]} 15. Qe2 {[%clk 0:01:53]}  a4 {[%clk 0:00:46]} 16. Qf2 {[%clk 0:01:39]}  h6 {[%clk 0:00:42]} 17. Qh4 {[%clk 0:01:39]}  cxd4 {[%clk 0:00:39]} 18. exd4 {[%clk 0:01:26]}  Ra5 {[%clk 0:00:33]} 19. c5 {[%clk 0:01:22]}  dxc5 {[%clk 0:00:30]} 20. Bxh6 {[%clk 0:01:12]}  gxh6 {[%clk 0:00:29]} 21. Qxh6 {[%clk 0:01:13]}  c4 {[%clk 0:00:25]} 22. Rxc4 {[%clk 0:01:01]}  Qd6 {[%clk 0:00:20]} 23. f5 {[%clk 0:00:52]}  Qf8 {[%clk 0:00:20]} 24. Qh3 {[%clk 0:00:41]}  e5 {[%clk 0:00:16]} 25. Rc7 {[%clk 0:00:35]}  e4 {[%clk 0:00:07]} 26. Bc4 {[%clk 0:00:22]}  Bd5 {[%clk 0:00:06]} 27. Re1 {[%clk 0:00:17]}  Bxc4 {[%clk 0:00:06]} 28. Nxc4 {[%clk 0:00:14]}  Rd5 {[%clk 0:00:04]} 29. Re3 {[%clk 0:00:15]}  Nh7 {[%clk 0:00:02]} 30. Rg3+ {[%clk 0:00:14]}  Kh8 {[%clk 0:00:03]} 31. Rg4 {[%clk 0:00:08]}  Rxd4 {[%clk 0:00:03]} 32. Qc3 {[%clk 0:00:08]} 1-0


[Site "https://www.chess.com"]

[Event "Titled Tuesday Blitz June 14 Late 2022"]
[White "Babazada, Khazar"]
[Black "Kim, Sergey"]
[WhiteFideId "13413554"]
[BlackFideId "13700570"]
[WhiteElo "2406"]
[BlackElo "2605"]
[Result "1-0"]
[Round "08"]
[TimeControl "180+1"]
[Date "2022.06.14"]
[WhiteClock "0:01:57"]
[BlackClock "0:01:00"]

1. e4 {[%clk 0:03:00]}  e5 {[%clk 0:03:00]} 2. Nf3 {[%clk 0:03:01]}  Nc6 {[%clk 0:03:00]} 3. d4 {[%clk 0:03:01]}  exd4 {[%clk 0:02:59]} 4. Bc4 {[%clk 0:03:01]}  Nf6 {[%clk 0:02:59]} 5. O-O {[%clk 0:03:00]}  Nxe4 {[%clk 0:02:57]} 6. Re1 {[%clk 0:03:00]}  d5 {[%clk 0:02:57]} 7. Bxd5 {[%clk 0:03:01]}  Qxd5 {[%clk 0:02:58]} 8. Nc3 {[%clk 0:03:02]}  Qa5 {[%clk 0:02:57]} 9. Nxe4 {[%clk 0:03:02]}  Be6 {[%clk 0:02:57]} 10. Bg5 {[%clk 0:03:01]}  Bb4 {[%clk 0:02:38]} 11. c3 {[%clk 0:02:58]}  Bd6 {[%clk 0:02:37]} 12. Nxd4 {[%clk 0:02:49]}  Nxd4 {[%clk 0:02:30]} 13. Qxd4 {[%clk 0:02:50]}  O-O {[%clk 0:02:29]} 14. Rad1 {[%clk 0:02:28]}  Be5 {[%clk 0:02:01]} 15. Qc5 {[%clk 0:02:27]}  Qxc5 {[%clk 0:02:00]} 16. Nxc5 {[%clk 0:02:28]}  Bd6 {[%clk 0:01:53]} 17. Nxe6 {[%clk 0:02:28]}  fxe6 {[%clk 0:01:53]} 18. Rxe6 {[%clk 0:02:28]}  Rae8 {[%clk 0:01:51]} 19. Rxe8 {[%clk 0:02:29]}  Rxe8 {[%clk 0:01:51]} 20. Be3 {[%clk 0:02:30]}  b6 {[%clk 0:01:50]} 21. g3 {[%clk 0:02:26]}  a5 {[%clk 0:01:50]} 22. Kg2 {[%clk 0:02:26]}  Kf7 {[%clk 0:01:50]} 23. Bxb6 {[%clk 0:02:25]}  Re2 {[%clk 0:01:48]} 24. Bxa5 {[%clk 0:02:22]}  Rxb2 {[%clk 0:01:47]} 25. Bxc7 {[%clk 0:02:23]}  Bc5 {[%clk 0:01:46]} 26. Rd7+ {[%clk 0:02:24]}  Ke6 {[%clk 0:01:45]} 27. Rxg7 {[%clk 0:02:21]}  h5 {[%clk 0:01:32]} 28. h4 {[%clk 0:02:11]}  Bxf2 {[%clk 0:01:27]} 29. Kf3 {[%clk 0:02:11]}  Rxa2 {[%clk 0:01:21]} 30. Rg5 {[%clk 0:02:08]}  Be1 {[%clk 0:01:20]} 31. Rxh5 {[%clk 0:02:07]}  Bxc3 {[%clk 0:01:15]} 32. Bf4 {[%clk 0:02:05]}  Bf6 {[%clk 0:01:10]} 33. Rb5 {[%clk 0:02:05]}  Ra6 {[%clk 0:01:06]} 34. Kg4 {[%clk 0:02:05]}  Be7 {[%clk 0:01:04]} 35. h5 {[%clk 0:02:03]}  Kf7 {[%clk 0:01:04]} 36. Rb7 {[%clk 0:02:02]}  Ke6 {[%clk 0:01:01]} 37. h6 {[%clk 0:02:01]}  Bf6 {[%clk 0:01:02]} 38. Kh5 {[%clk 0:01:58]}  Ra5+ {[%clk 0:01:00]} 39. Kg6 {[%clk 0:01:57]} 1-0


[Site "https://www.chess.com"]

[Event "Titled Tuesday Blitz June 14 Late 2022"]
[White "Beulen, Marcel"]
[Black "Jocev, Milan"]
[WhiteFideId "1001450"]
[BlackFideId "900680"]
[WhiteElo "2398"]
[BlackElo "2322"]
[Result "1-0"]
[Round "08"]
[TimeControl "180+1"]
[Date "2022.06.15"]
[WhiteClock "0:00:17"]
[BlackClock "0:00:01"]

1. e4 {[%clk 0:03:00]}  e5 {[%clk 0:02:48]} 2. Nf3 {[%clk 0:03:00]}  Nc6 {[%clk 0:02:44]} 3. Bc4 {[%clk 0:02:59]}  Nf6 {[%clk 0:02:43]} 4. d3 {[%clk 0:02:59]}  Bc5 {[%clk 0:02:43]} 5. c3 {[%clk 0:02:59]}  d6 {[%clk 0:02:42]} 6. Nbd2 {[%clk 0:02:57]}  a6 {[%clk 0:02:41]} 7. Bb3 {[%clk 0:02:56]}  O-O {[%clk 0:02:39]} 8. O-O {[%clk 0:02:55]}  Re8 {[%clk 0:02:38]} 9. h3 {[%clk 0:02:54]}  Be6 {[%clk 0:02:33]} 10. Re1 {[%clk 0:02:53]}  Ba7 {[%clk 0:02:32]} 11. Nf1 {[%clk 0:02:48]}  d5 {[%clk 0:02:28]} 12. Ng3 {[%clk 0:02:45]}  dxe4 {[%clk 0:02:18]} 13. dxe4 {[%clk 0:02:42]}  Qxd1 {[%clk 0:02:15]} 14. Rxd1 {[%clk 0:02:41]}  Bxb3 {[%clk 0:02:11]} 15. axb3 {[%clk 0:02:41]}  h6 {[%clk 0:02:07]} 16. Bd2 {[%clk 0:02:06]}  Rad8 {[%clk 0:02:04]} 17. b4 {[%clk 0:01:58]}  Rd7 {[%clk 0:01:39]} 18. Be1 {[%clk 0:01:57]}  Red8 {[%clk 0:01:12]} 19. Rxd7 {[%clk 0:01:56]}  Rxd7 {[%clk 0:01:13]} 20. Kf1 {[%clk 0:01:56]}  Kf8 {[%clk 0:01:07]} 21. Ke2 {[%clk 0:01:56]}  Bb6 {[%clk 0:00:55]} 22. Rd1 {[%clk 0:01:52]}  Rxd1 {[%clk 0:00:51]} 23. Kxd1 {[%clk 0:01:53]}  g6 {[%clk 0:00:37]} 24. Ke2 {[%clk 0:01:51]}  h5 {[%clk 0:00:28]} 25. Bd2 {[%clk 0:01:49]}  Ne8 {[%clk 0:00:20]} 26. Be3 {[%clk 0:01:48]}  Nd6 {[%clk 0:00:19]} 27. Bxb6 {[%clk 0:01:41]}  cxb6 {[%clk 0:00:20]} 28. Kd3 {[%clk 0:01:37]}  b5 {[%clk 0:00:20]} 29. b3 {[%clk 0:01:37]}  b6 {[%clk 0:00:20]} 30. Nf1 {[%clk 0:01:28]}  a5 {[%clk 0:00:21]} 31. bxa5 {[%clk 0:01:28]}  bxa5 {[%clk 0:00:21]} 32. Ne3 {[%clk 0:01:27]}  a4 {[%clk 0:00:22]} 33. bxa4 {[%clk 0:01:27]}  bxa4 {[%clk 0:00:23]} 34. Nc2 {[%clk 0:01:19]}  Ke7 {[%clk 0:00:19]} 35. Nd2 {[%clk 0:01:18]}  Na5 {[%clk 0:00:13]} 36. c4 {[%clk 0:01:15]}  Nab7 {[%clk 0:00:13]} 37. Kc3 {[%clk 0:01:14]}  Nc5 {[%clk 0:00:12]} 38. f3 {[%clk 0:01:14]}  f5 {[%clk 0:00:13]} 39. exf5 {[%clk 0:01:13]}  gxf5 {[%clk 0:00:14]} 40. Kb4 {[%clk 0:01:13]}  Ndb7 {[%clk 0:00:10]} 41. Nb1 {[%clk 0:01:03]}  Kd6 {[%clk 0:00:10]} 42. Nc3 {[%clk 0:01:03]}  Nd3+ {[%clk 0:00:10]} 43. Kxa4 {[%clk 0:01:03]}  Nf4 {[%clk 0:00:11]} 44. Ne3 {[%clk 0:00:59]}  Nc5+ {[%clk 0:00:11]} 45. Kb5 {[%clk 0:00:59]}  Nb3 {[%clk 0:00:06]} 46. Nxf5+ {[%clk 0:00:58]}  Ke6 {[%clk 0:00:07]} 47. g4 {[%clk 0:00:52]}  Nxh3 {[%clk 0:00:06]} 48. Ng7+ {[%clk 0:00:52]}  Kf6 {[%clk 0:00:04]} 49. Nxh5+ {[%clk 0:00:53]}  Kg5 {[%clk 0:00:03]} 50. Ne4+ {[%clk 0:00:44]}  Kg6 {[%clk 0:00:02]} 51. c5 {[%clk 0:00:44]}  Nd4+ {[%clk 0:00:02]} 52. Kb6 {[%clk 0:00:45]}  Ng1 {[%clk 0:00:02]} 53. Nd2 {[%clk 0:00:39]}  e4 {[%clk 0:00:01]} 54. fxe4 {[%clk 0:00:38]}  Nge2 {[%clk 0:00:01]} 55. c6 {[%clk 0:00:35]}  Nxc6 {[%clk 0:00:01]} 56. Kxc6 {[%clk 0:00:35]}  Kg5 {[%clk 0:00:02]} 57. e5 {[%clk 0:00:26]}  Kxg4 {[%clk 0:00:02]} 58. Ng7 {[%clk 0:00:25]}  Nd4+ {[%clk 0:00:02]} 59. Kd5 {[%clk 0:00:24]}  Nb5 {[%clk 0:00:03]} 60. Kc5 {[%clk 0:00:22]}  Nc7 {[%clk 0:00:02]} 61. Nc4 {[%clk 0:00:22]}  Kg5 {[%clk 0:00:01]} 62. Kd6 {[%clk 0:00:21]}  Nb5+ {[%clk 0:00:01]} 63. Kd5 {[%clk 0:00:15]}  Kg6 {[%clk 0:00:01]} 64. Ne8 {[%clk 0:00:16]}  Kf7 {[%clk 0:00:01]} 65. Ned6+ {[%clk 0:00:16]}  Ke7 {[%clk 0:00:01]} 66. Nxb5 {[%clk 0:00:16]}  Kd7 {[%clk 0:00:01]} 67. Nd4 {[%clk 0:00:17]}  Kd8 {[%clk 0:00:01]} 68. Kd6 {[%clk 0:00:17]} 1-0


[Site "https://www.chess.com"]

[Event "Titled Tuesday Blitz June 14 Late 2022"]
[White "Bjelobrk, Igor"]
[Black "Goncalves, Davi Sulzbacher"]
[WhiteFideId "4300726"]
[BlackFideId "2154510"]
[WhiteElo "2335"]
[BlackElo "2107"]
[Result "0-1"]
[Round "08"]
[TimeControl "180+1"]
[Date "2022.06.15"]
[WhiteClock "0:00:09"]
[BlackClock "0:00:14"]

1. Nf3 {[%clk 0:02:56]}  Nf6 {[%clk 0:02:59]} 2. c4 {[%clk 0:02:56]}  g6 {[%clk 0:03:00]} 3. Nc3 {[%clk 0:02:55]}  d5 {[%clk 0:03:00]} 4. cxd5 {[%clk 0:02:52]}  Nxd5 {[%clk 0:03:01]} 5. h4 {[%clk 0:02:51]}  Nxc3 {[%clk 0:02:52]} 6. bxc3 {[%clk 0:02:48]}  Nc6 {[%clk 0:02:49]} 7. h5 {[%clk 0:02:45]}  Bg7 {[%clk 0:02:49]} 8. d4 {[%clk 0:02:39]}  Bg4 {[%clk 0:02:45]} 9. h6 {[%clk 0:02:35]}  Bf6 {[%clk 0:02:45]} 10. e4 {[%clk 0:02:33]}  e5 {[%clk 0:02:34]} 11. d5 {[%clk 0:02:32]}  Ne7 {[%clk 0:02:32]} 12. Qb3 {[%clk 0:02:20]}  O-O {[%clk 0:02:18]} 13. Qxb7 {[%clk 0:02:12]}  Rb8 {[%clk 0:02:10]} 14. Qxa7 {[%clk 0:02:11]}  c6 {[%clk 0:02:10]} 15. c4 {[%clk 0:02:05]}  cxd5 {[%clk 0:02:07]} 16. cxd5 {[%clk 0:02:06]}  Nxd5 {[%clk 0:02:06]} 17. exd5 {[%clk 0:01:45]}  e4 {[%clk 0:02:05]} 18. Nd4 {[%clk 0:01:45]}  Ra8 {[%clk 0:01:44]} 19. Qc5 {[%clk 0:01:42]}  Ra5 {[%clk 0:01:44]} 20. Nb5 {[%clk 0:01:34]}  Rxb5 {[%clk 0:01:25]} 21. Bxb5 {[%clk 0:01:30]}  Bxa1 {[%clk 0:01:25]} 22. O-O {[%clk 0:01:24]}  Qf6 {[%clk 0:01:12]} 23. Be3 {[%clk 0:01:18]}  Be5 {[%clk 0:01:03]} 24. d6 {[%clk 0:00:43]}  Bxd6 {[%clk 0:00:53]} 25. Qd4 {[%clk 0:00:42]}  Be5 {[%clk 0:00:39]} 26. Qxe4 {[%clk 0:00:39]}  Bf5 {[%clk 0:00:40]} 27. Qd5 {[%clk 0:00:34]}  Rd8 {[%clk 0:00:38]} 28. Bg5 {[%clk 0:00:26]}  Qxg5 {[%clk 0:00:37]} 29. Qxe5 {[%clk 0:00:25]}  Qxh6 {[%clk 0:00:36]} 30. a4 {[%clk 0:00:23]}  Qd2 {[%clk 0:00:32]} 31. Re1 {[%clk 0:00:21]}  Be6 {[%clk 0:00:26]} 32. Re3 {[%clk 0:00:19]}  Qc1+ {[%clk 0:00:17]} 33. Re1 {[%clk 0:00:18]}  Qc8 {[%clk 0:00:15]} 34. a5 {[%clk 0:00:17]}  Rd5 {[%clk 0:00:16]} 35. Qe2 {[%clk 0:00:17]}  Qb8 {[%clk 0:00:14]} 36. Bc4 {[%clk 0:00:13]}  Rxa5 {[%clk 0:00:13]} 37. Bxe6 {[%clk 0:00:14]}  fxe6 {[%clk 0:00:13]} 38. Qxe6+ {[%clk 0:00:14]}  Kg7 {[%clk 0:00:13]} 39. Qe7+ {[%clk 0:00:13]}  Kh6 {[%clk 0:00:14]} 40. Qf6 {[%clk 0:00:08]}  Rf5 {[%clk 0:00:13]} 41. Qh4+ {[%clk 0:00:09]}  Rh5 {[%clk 0:00:14]} 42. Qf4+ {[%clk 0:00:09]}  Qxf4 {[%clk 0:00:14]} 0-1


[Site "https://www.chess.com"]